bitfinex-derivatives/quotes_ETHF0:USTF0_20250126
["timestamp","ask_amount","ask_price","bid_price","bid_amount"]
[1737925684811,5.41085171,3319.6,3319.5,4.81655743]
[1737925693413,4.80828171,3319.6,3319.0,1.0181]
[1737925693622,0.60266,3319.1,3319.0,1.0181]
[1737925693913,5.41092171,3319.2,3319.1,4.81655743]
[1737925694715,5.41092171,3319.2,3318.4,1.4616]
[1737925694716,0.60271,3318.8,3318.4,2.06437]
[1737925694908,2.20325171,3318.5,3318.4,1.4616]
[1737925695314,2.20325171,3318.5,3318.4,6.27815743]
[1737925696813,2.20325171,3318.5,3318.4,5.80265743]
[1737925697014,1.60048171,3318.5,3318.4,6.40543743]
[1737925697622,1.60048171,3318.5,3318.4,5.80265743]
[1737925697917,2.20325171,3318.5,3318.4,6.40543743]
[1737925698418,1.60048171,3318.5,3318.4,6.40543743]
[1737925698614,5.78128171,3318.8,3318.7,0.60273]
[1737925698814,6.38399171,3318.8,3318.7,5.41928743]
[1737925699319,6.38399171,3318.8,3318.7,4.81655743]
[1737925700821,5.78128171,3318.8,3318.7,5.41928743]
[1737925703418,4.80828171,3318.8,3318.7,5.41928743]
[1737925704725,5.41099171,3318.8,3318.7,5.41928743]
[1737925705324,5.41099171,3318.8,3318.7,4.81655743]
[1737925706418,4.80828171,3318.8,3318.4,0.9861]
[1737925706624,1.60048171,3318.5,3317.5,3.2078]
[1737925706820,1.50689,3318.6,3317.5,3.2078]
[1737925706821,1.60048171,3317.9,3317.7,0.4875]
[1737925707021,2.20336171,3317.9,3317.8,0.60289]
[1737925707218,2.20336171,3317.9,3317.8,5.41944743]
[1737925707421,2.20336171,3317.9,3317.8,4.81655743]
[1737925708130,2.20336171,3317.9,3317.8,5.94074743]
[1737925708831,1.60048171,3317.9,3317.8,5.94074743]
[1737925710132,4.80828171,3317.9,3317.8,5.94074743]
[1737925710325,0.00451433,3318.3,3318.2,0.60282]
[1737925710635,0.00451433,3318.3,3318.2,5.41937743]
[1737925711926,2.20319171,3318.8,3318.7,0.60273]
[1737925712129,2.20319171,3318.8,3318.7,5.41928743]
[1737925712626,1.60048171,3318.8,3318.7,5.41928743]
[1737925713433,2.20319171,3318.8,3318.7,4.81655743]
[1737925714828,2.20319171,3318.8,3318.7,5.41928743]
[1737925715032,2.20319171,3318.8,3318.7,4.81655743]
[1737925716127,1.60048171,3318.8,3318.7,5.41928743]
[1737925716832,2.20319171,3318.8,3318.7,5.41928743]
[1737925719732,1.60048171,3318.8,3318.7,5.41928743]
[1737925721930,2.20319171,3318.8,3318.7,4.81655743]
[1737925722936,2.20319171,3318.8,3318.4,0.00451433]
[1737925722937,0.60277,3318.5,3318.4,0.00451433]
[1737925723130,5.41105171,3318.5,3318.4,4.82107176]
[1737925723934,4.80828171,3318.5,3318.4,5.42385176]
[1737925724138,5.41105171,3318.5,3318.4,5.42385176]
[1737925724334,4.80828171,3318.5,3318.4,5.42385176]
[1737925724736,3.2078,3318.5,3318.4,5.42385176]
[1737925725437,4.80828171,3318.5,3318.4,5.42385176]
[1737925737545,4.80828171,3318.5,3318.4,4.82107176]
[1737925737746,5.41105171,3318.5,3318.4,4.82107176]
[1737925740345,5.41105171,3318.5,3318.4,5.42385176]
[1737925741047,3.2078,3318.9,3318.8,0.60271]
[1737925741350,0.00451433,3319.1,3319.0,5.41923743]
[1737925746049,1.60499604,3319.1,3319.0,5.41923743]
[1737925752657,0.00451433,3319.1,3319.0,5.41923743]
[1737925757160,1.60048171,3319.7,3319.6,0.60257]
[1737925757363,1.60048171,3319.7,3319.6,5.41912743]
[1737925758259,2.20303171,3319.7,3319.6,5.41912743]
[1737925758758,1.60048171,3319.7,3319.6,5.41912743]
[1737925760063,3.2078,3319.8,3319.7,0.60255]
[1737925760258,3.2078,3319.8,3319.7,5.41910743]
[1737925762260,0.00451433,3320.0,3319.9,0.60251]
[1737925762458,0.00451433,3320.0,3319.9,5.41906743]
[1737925762853,0.00451433,3320.0,3319.9,5.93716743]
[1737925763860,3.2078,3320.3,3319.9,10.33465743]
[1737925764058,1.60048171,3320.9,3320.2,8.62681743]
[1737925764261,1.60048171,3320.9,3320.8,5.41890743]
[1737925764461,3.2078,3321.1,3320.8,4.81655743]
[1737925764664,3.2078,3321.1,3321.0,5.41886743]
[1737925765065,3.2078,3321.1,3321.0,0.60231]
[1737925765266,3.2078,3321.1,3321.0,5.41886743]
[1737925767269,12.66178781,3321.4,3321.3,0.60226]
[1737925767464,12.66178781,3321.4,3321.3,5.41881743]
[1737925767771,3.42025904,3321.4,3321.3,8.81006]
[1737925767971,2.63135904,3321.4,3321.3,8.81006]
[1737925768167,0.00451433,3321.4,3321.3,8.81006]
[1737925769271,0.00451433,3321.4,3321.3,3.81006]
[1737925770068,0.00451433,3321.4,3321.3,8.81006]
[1737925771174,0.00451433,3321.4,3321.3,9.32176]
[1737925772669,4.80828171,3322.4,3322.3,0.60208]
[1737925773478,0.5183,3322.5,3322.4,0.60206]
[1737925775079,0.5183,3322.5,3322.2,0.487]
[1737925775080,0.00451433,3322.8,3322.2,1.99223]
[1737925775375,0.47981433,3322.8,3322.7,0.602]
[1737925776069,0.47981433,3322.8,3322.4,0.00451433]
[1737925776070,0.60204,3322.5,3322.4,0.00451433]
[1737925776267,5.41032171,3322.5,3322.4,0.00451433]
[1737925779073,4.80828171,3322.5,3322.4,0.00451433]
[1737925779278,3.2078,3322.5,3322.4,0.00451433]
[1737925779479,0.5013,3322.7,3322.6,0.60202]
[1737925780473,0.5013,3322.7,3322.4,0.00451433]
[1737925780675,1.10331,3322.7,3322.5,0.60203]
[1737925780886,1.10331,3322.7,3322.4,0.60655433]
[1737925781077,1.10331,3322.7,3322.4,0.00451433]
[1737925781279,1.10331,3322.7,3322.5,0.60203]
[1737925782289,0.5013,3322.7,3322.5,0.60203]
[1737925782489,0.60202,3322.6,3322.5,0.60203]
[1737925782689,0.5013,3322.7,3322.5,0.60203]
[1737925782890,1.10332,3322.7,3322.5,0.60203]
[1737925784690,0.60202,3322.6,3322.5,0.60203]
[1737925785092,1.10331,3322.7,3322.5,0.60203]
[1737925785293,0.5013,3322.7,3322.4,0.00451433]
[1737925785487,0.5013,3322.7,3322.6,0.60202]
[1737925785888,1.1033,3322.7,3322.6,0.60202]
[1737925786686,0.60202,3322.6,3322.5,0.60203]
[1737925787397,0.60202,3322.6,3322.4,0.60655433]
[1737925787613,3.2078,3322.5,3322.4,0.00451433]
[1737925787921,5.41032171,3322.5,3322.4,0.00451433]
[1737925788528,5.41032171,3322.5,3321.8,0.60216]
[1737925788529,0.60215,3322.0,3321.8,0.60216]
[1737925788701,1.09915,3321.9,3321.7,0.60218]
[1737925788888,1.09915,3321.9,3321.7,0.60219]
[1737925789083,1.09915,3321.9,3321.8,0.60217]
[1737925789301,0.497,3321.9,3321.8,0.60217]
[1737925789794,1.60048171,3322.2,3322.1,0.60211]
[1737925791791,0.60212,3322.1,3322.0,0.60212]
[1737925792193,1.60048171,3322.2,3321.6,3.2078]
[1737925792394,0.60218,3321.8,3321.7,0.60217]
[1737925794298,1.60048171,3322.2,3321.6,3.2078]
[1737925794499,0.5255,3321.7,3321.6,3.81]
[1737925797195,0.5255,3321.7,3321.6,3.2078]
[1737925797505,0.5255,3321.7,3321.6,0.6022]
[1737925797692,1.12769,3321.7,3321.6,0.6022]
[1737925799801,0.5255,3321.7,3321.6,0.6022]
[1737925800504,1.12769,3321.7,3321.6,0.6022]
[1737925800801,0.6022,3321.6,3321.5,0.00451433]
[1737925801008,2.20268171,3321.6,3321.5,0.00451433]
[1737925804099,0.60231,3321.0,3320.9,0.60232]
[1737925804309,0.60233,3320.9,3320.8,0.60233]
[1737925804606,1.07823,3320.9,3320.8,0.60233]
[1737925805009,0.4759,3320.9,3320.8,0.60233]
[1737925806111,0.4759,3320.9,3320.6,0.60237]
[1737925806316,3.2078,3320.7,3320.6,0.60237]
[1737925807199,3.2078,3320.7,3320.5,0.53031433]
[1737925807408,5.41065171,3320.7,3320.6,0.60238]
[1737925809013,3.2078,3320.7,3320.6,0.60238]
[1737925809706,3.2078,3321.1,3321.0,0.6023]
[1737925810110,0.60238,3320.6,3320.5,0.00451433]
[1737925810315,1.60048171,3320.6,3320.5,0.00451433]
[1737925811206,1.60048171,3320.6,3320.5,0.60691433]
[1737925811821,3.81017,3320.7,3320.5,0.60691433]
[1737925812407,3.2078,3320.7,3320.5,0.00451433]
[1737925812608,3.2078,3320.7,3320.6,1.11268]
[1737925812816,3.2078,3320.7,3320.6,1.59608]
[1737925813514,1.60048171,3320.9,3320.8,0.60235]
[1737925813903,0.60232,3321.0,3320.8,0.60235]
[1737925814108,3.8101,3321.1,3320.7,0.60237]
[1737925814316,3.8101,3321.1,3320.8,0.60234]
[1737925814513,3.2078,3321.1,3320.6,0.9937]
[1737925814814,0.60234,3320.9,3320.7,0.60236]
[1737925815015,0.60237,3320.7,3320.6,0.4834]
[1737925815314,0.60238,3320.6,3320.5,0.00451433]
[1737925815504,6.38966171,3320.6,3320.5,0.00451433]
[1737925826427,5.30778171,3320.6,3320.5,0.00451433]
[1737925826620,3.2078,3320.6,3320.5,0.60691433]
[1737925826826,2.55548171,3320.9,3320.8,0.60235]
[1737925827716,2.55548171,3320.9,3320.6,1.4836]
[1737925827922,0.60237,3320.7,3320.6,1.4836]
[1737925828218,0.60237,3320.7,3320.6,2.08598]
[1737925828631,0.60237,3320.7,3320.6,1.4836]
[1737925829020,0.60237,3320.7,3320.6,2.08598]
[1737925829718,2.55648171,3320.9,3320.8,0.60235]
[1737925829920,3.15881171,3320.9,3320.8,0.60235]
[1737925830228,2.55648171,3320.9,3320.6,1.4836]
[1737925830420,0.60237,3320.7,3320.6,2.08597]
[1737925831717,3.81017,3320.7,3320.6,2.08597]
[1737925831928,3.2078,3320.7,3320.6,2.08597]
[1737925833927,2.55648171,3320.9,3320.6,1.4836]
[1737925834125,0.60237,3320.7,3320.6,1.4836]
[1737925834630,2.55648171,3320.9,3320.6,1.4836]
[1737925834829,0.60236,3320.8,3320.7,0.60236]
[1737925835223,3.2078,3321.1,3320.6,1.4836]
[1737925835224,0.60232,3321.0,3320.6,1.4836]
[1737925835530,0.60232,3321.0,3320.9,0.60233]
[1737925836527,0.60233,3320.9,3320.8,0.60234]
[1737925838734,0.955,3321.0,3320.6,1.4836]
[1737925838930,0.60236,3320.8,3320.7,0.60237]
[1737925839723,0.60235,3320.8,3320.7,0.60237]
[1737925839933,1.60048171,3320.9,3320.6,1.4836]
[1737925840126,3.81017,3320.7,3320.6,0.999]
[1737925840326,3.81017,3320.7,3320.6,0.4985]
[1737925842240,3.2078,3320.7,3320.6,0.4985]
[1737925842534,3.2078,3320.7,3320.6,1.10088]
[1737925844032,3.81017,3320.7,3320.6,1.10088]
[1737925844238,3.2078,3320.7,3320.6,1.10088]
[1737925844829,3.81017,3320.7,3320.6,1.10088]
[1737925847727,3.81017,3320.7,3320.6,0.4985]
[1737925852739,0.60238,3320.6,3320.5,0.00451433]
[1737925852943,2.68536171,3320.6,3320.5,0.00451433]
[1737925857442,5.89316171,3320.6,3320.5,0.00451433]
[1737925861945,5.41066171,3320.6,3320.5,0.00451433]
[1737925862151,4.1578,3320.6,3320.5,0.60691433]
[1737925864245,3.2078,3320.6,3320.5,0.60691433]
[1737925869353,3.2078,3321.0,3320.9,0.60233]
[1737925870249,0.00451433,3321.2,3320.7,3.2078]
[1737925870445,0.60679433,3321.2,3321.1,0.60229]
[1737925870646,0.00451433,3321.2,3321.1,0.60229]
[1737925870846,0.60679433,3321.2,3321.1,0.60229]
[1737925872640,0.00451433,3321.2,3321.1,0.60229]
[1737925876752,0.60679433,3321.2,3321.1,0.60229]
[1737925876951,0.60679433,3321.2,3321.0,0.6023]
[1737925877142,0.00451433,3321.2,3321.0,0.6023]
[1737925877347,0.60679433,3321.2,3321.1,0.4981]
[1737925877854,0.60237,3320.7,3320.5,0.60690433]
[1737925878155,0.60235,3320.8,3320.6,0.60237]
[1737925878650,0.60237,3320.7,3320.6,0.60237]
[1737925879450,0.4918,3320.8,3320.7,0.60237]
[1737925879451,1.09415,3320.8,3320.7,0.60237]
[1737925879746,0.60235,3320.8,3320.7,0.60237]
[1737925882151,0.60236,3320.8,3320.6,0.60237]
[1737925882353,0.60237,3320.7,3320.6,0.60237]
[1737925882655,0.60237,3320.8,3320.6,0.60237]
[1737925883044,0.60237,3320.7,3320.6,0.60237]
[1737925884153,3.2078,3320.9,3320.5,0.97841433]
[1737925884357,3.81014,3320.9,3320.8,0.60235]
[1737925884655,0.60234,3320.9,3320.8,0.60235]
[1737925887254,0.00451433,3321.2,3320.5,2.57889604]
[1737925887555,0.00451433,3321.2,3321.1,0.60229]
[1737925888952,0.00451433,3321.2,3320.6,1.50597]
[1737925889261,0.60238,3320.7,3320.6,0.60237]
[1737925889560,0.60238,3320.6,3320.5,0.00451433]
[1737925889755,1.09858,3320.6,3320.5,0.00451433]
[1737925891656,2.69906171,3320.6,3320.5,0.00451433]
[1737925895255,3.17976171,3320.6,3320.5,0.00451433]
[1737925900751,3.17976171,3320.6,3319.6,2.09346]
[1737925900752,0.60255,3319.7,3319.6,2.09346]
[1737925900953,0.948,3320.0,3319.9,0.60251]
[1737925901165,3.2078,3320.2,3320.1,0.60248]
[1737925903659,0.60244,3320.3,3319.8,0.00451433]
[1737925903855,0.60244,3320.3,3320.2,0.60246]
[1737925904061,0.948,3320.4,3319.8,0.00451433]
[1737925904267,0.60248,3320.1,3320.0,0.60249]
[1737925905072,0.60251,3319.9,3319.8,0.00451433]
[1737925905362,2.20299171,3319.9,3319.8,0.00451433]
[1737925907871,0.60266,3319.1,3319.0,0.5019]
[1737925908563,1.08926,3319.1,3319.0,0.5019]
[1737925908768,0.6027,3318.9,3318.8,0.6027]
[1737925908962,0.4866,3319.1,3318.6,1.0042]
[1737925909377,0.4866,3319.1,3318.8,0.60271]
[1737925909378,0.6027,3318.9,3318.8,0.60271]
[1737925909865,0.4866,3319.1,3318.8,0.60271]
[1737925910072,0.60268,3319.0,3318.8,0.60271]
[1737925910373,0.60269,3319.0,3318.8,0.60271]
[1737925910769,0.60269,3318.9,3318.8,0.60271]
[1737925911973,0.60272,3318.8,3318.7,0.60272]
[1737925912172,1.60048171,3319.0,3318.6,1.0042]
[1737925912472,0.60273,3318.7,3318.6,0.4974]
[1737925913066,1.60048171,3319.0,3318.4,0.4917]
[1737925913370,0.60277,3318.5,3318.4,0.4917]
[1737925914372,4.80828171,3318.7,3318.4,1.09448]
[1737925914569,0.60276,3318.6,3318.5,0.60277]
[1737925915567,0.60277,3318.5,3318.4,1.09448]
[1737925915767,0.60277,3318.6,3318.4,1.09448]
[1737925916066,0.60277,3318.5,3318.4,1.09448]
[1737925916270,0.60276,3318.6,3318.4,1.09448]
[1737925916573,0.60277,3318.5,3318.4,0.4917]
[1737925918676,1.0018,3318.6,3318.4,1.09448]
[1737925918974,1.60456,3318.6,3318.4,1.09448]
[1737925920067,1.60456,3318.6,3318.5,0.60277]
[1737925920268,2.07436,3318.6,3318.5,0.60277]
[1737925920763,1.4716,3318.6,3318.5,0.60277]
[1737925921774,2.07435,3318.6,3318.5,0.60277]
[1737925921974,1.4716,3318.6,3318.5,0.60277]
[1737925922468,2.07435,3318.6,3318.5,0.60277]
[1737925923673,1.4716,3318.6,3318.5,0.60277]
[1737925924380,2.07435,3318.6,3318.5,0.60277]
[1737925924671,1.4716,3318.6,3318.4,0.4917]
[1737925924880,0.60287,3318.0,3317.8,0.60288]
[1737925925072,2.72006171,3317.9,3317.8,0.60288]
[1737925926678,2.72006171,3317.9,3317.7,0.6029]
[1737925926979,2.72006171,3317.9,3317.8,0.60289]
[1737925927178,2.11718171,3317.9,3317.6,0.5111]
[1737925927381,0.60291,3317.7,3317.6,0.5111]
[1737925927680,2.11718171,3317.9,3317.8,0.60289]
[1737925927681,2.72006171,3317.9,3317.8,0.60289]
[1737925928076,2.11718171,3317.9,3317.6,0.5111]
[1737925928277,0.60291,3317.7,3317.6,1.11402]
[1737925928980,0.60291,3317.7,3317.6,0.60292]
[1737925929178,0.948,3317.7,3317.1,4.11220444]
[1737925929376,0.60297,3317.4,3317.1,0.90440444]
[1737925930084,3.71266342,3317.6,3316.4,5.01699068]
[1737925930282,2.20360171,3316.6,3316.5,0.60313]
[1737925930584,0.60313,3316.5,3316.4,1.80919068]
[1737925931176,2.20361171,3316.5,3316.4,1.80919068]
[1737925931476,6.50787,3316.5,3315.5,0.90484089]
[1737925931679,1.60048171,3316.4,3316.0,3.2078]
[1737925931888,1.60048171,3316.4,3316.3,0.60317]
[1737925932185,1.60048171,3316.7,3316.0,3.2078]
[1737925932376,1.60048171,3316.7,3316.5,0.60312]
[1737925932577,1.60048171,3316.7,3316.6,0.4985]
[1737925932778,1.60048171,3316.7,3316.6,1.10161]
[1737925933083,1.60048171,3316.7,3316.6,0.4985]
[1737925933589,0.96,3316.8,3316.7,0.60309]
[1737925933882,0.96,3316.8,3316.7,1.10279]
[1737925934082,0.96,3316.8,3316.7,1.60379]
[1737925934287,0.96,3316.8,3316.7,1.0007]
[1737925934486,1.56307,3316.8,3316.7,1.0007]
[1737925934781,1.56307,3316.8,3316.7,0.501]
[1737925935381,1.56307,3316.8,3316.4,3.2078]
[1737925935382,0.96,3316.8,3316.4,3.2078]
[1737925935584,2.20361171,3316.5,3316.4,3.2078]
[1737925935880,2.56048171,3316.8,3316.7,0.60309]
[1737925936189,2.56048171,3316.8,3316.5,0.501]
[1737925936388,0.6031,3316.7,3316.5,1.10412]
[1737925936587,0.60311,3316.6,3316.5,0.501]
[1737925937090,0.6031,3316.7,3316.5,0.501]
[1737925937488,0.6031,3316.7,3316.6,0.5113]
[1737925938293,3.16357171,3316.8,3316.6,0.5113]
[1737925938481,0.96,3316.8,3316.7,0.60309]
[1737925938684,1.09404,3317.0,3316.6,0.5113]
[1737925938890,1.456,3317.0,3316.8,0.60306]
[1737925939188,4.80828171,3317.1,3317.0,0.60304]
[1737925939588,4.80828171,3317.1,3316.7,0.5202]
[1737925939885,4.80828171,3317.1,3316.9,0.60305]
[1737925940193,5.41130171,3317.1,3316.9,0.60305]
[1737925940394,4.80828171,3317.1,3316.8,0.60307]
[1737925940586,0.60305,3317.0,3316.8,0.60307]
[1737925941387,4.80828171,3317.1,3316.7,0.5202]
[1737925941388,0.60307,3316.8,3316.7,0.5202]
[1737925941596,1.60048171,3316.8,3316.6,0.5113]
[1737925942890,0.60309,3316.7,3316.6,0.5113]
[1737925943391,3.2078,3316.7,3316.0,0.60321]
[1737925943589,0.60321,3316.1,3315.9,0.60323]
[1737925944288,1.60048171,3316.0,3315.7,3.2078]
[1737925944484,2.56548171,3316.0,3315.3,3.2078]
[1737925944986,3.16870171,3316.0,3315.8,0.60325]
[1737925945191,0.60324,3315.9,3315.7,0.60327]
[1737925945692,2.56548171,3316.0,3315.9,0.60324]
[1737925946087,0.965,3316.0,3315.9,0.60324]
[1737925946290,0.60329,3315.6,3314.9,3.2078]
[1737925946491,1.60048171,3315.6,3315.2,0.60336]
[1737925946793,2.20377171,3315.6,3315.0,0.60339]
[1737925946994,2.20377171,3315.6,3315.1,0.60338]
[1737925947290,2.20377171,3315.6,3314.9,3.2078]
[1737925947291,7.20377171,3315.6,3314.9,3.81121]
[1737925947499,0.60331,3315.5,3314.9,3.2078]
[1737925947689,0.60339,3315.1,3314.9,3.2078]
[1737925947992,0.97,3315.0,3314.9,3.2078]
[1737925948295,0.97,3315.0,3314.9,3.81122]
[1737925950288,0.969,3315.3,3315.1,0.60338]
[1737925950488,0.969,3315.3,3315.2,0.5256]
[1737925950697,1.57235,3315.3,3315.2,0.5256]
[1737925950898,0.60335,3315.3,3315.2,0.5256]
[1737925951100,0.00452127,3315.5,3315.4,0.60333]
[1737925951297,0.00452127,3315.5,3315.4,3.81113]
[1737925957206,0.00452127,3315.5,3315.2,0.5256]
[1737925957207,1.60500298,3315.5,3315.2,0.5256]
[1737925957602,0.60335,3315.3,3315.2,0.5256]
[1737925959999,1.60500298,3315.5,3315.4,0.60333]
[1737925960201,2.57300298,3315.5,3315.4,0.60333]
[1737925961008,3.17632298,3315.5,3315.0,3.2078]
[1737925961201,2.57300298,3315.5,3315.3,0.60335]
[1737925961506,0.4896,3315.4,3315.3,0.60335]
[1737925961908,0.4896,3315.4,3315.3,1.11745]
[1737925963013,1.09293,3315.4,3315.3,1.11745]
[1737925965106,0.4896,3315.4,3315.2,1.12105]
[1737925965306,0.60338,3315.2,3315.0,4.33589]
[1737925965510,2.20386171,3315.2,3315.0,4.33589]
[1737925966019,0.60338,3315.1,3315.0,3.2078]
[1737925968114,0.6034,3315.0,3314.9,0.60342]
[1737925968824,0.60341,3315.0,3314.9,0.60342]
[1737925969020,1.60048171,3315.2,3314.8,0.5149]
[1737925969320,0.60341,3315.0,3314.9,0.60342]
[1737925969714,0.60339,3315.1,3315.0,0.60339]
[1737925970123,1.60048171,3315.2,3314.8,0.5149]
[1737925970321,1.60048171,3315.2,3315.1,0.60338]
[1737925970816,2.20385171,3315.2,3315.1,0.60338]
[1737925971219,1.60048171,3315.2,3315.1,0.60338]
[1737925975819,3.17632298,3315.5,3315.1,0.60338]
[1737925976022,2.57300298,3315.5,3315.4,0.60333]
[1737925976223,1.60500298,3315.5,3315.4,3.81113]
[1737925976527,0.00452127,3315.5,3315.4,3.81113]
[1737925978027,0.00195143,3315.5,3315.4,3.81113]
[1737925978228,1.60243314,3315.5,3315.4,3.2078]
[1737925978425,2.20574314,3315.5,3315.4,3.2078]
[1737925979124,2.20574314,3315.5,3315.4,3.81113]
[1737925979329,1.60243314,3315.5,3315.4,3.81113]
[1737925981030,2.20574314,3315.5,3315.4,3.81113]
[1737925981230,2.20574314,3315.5,3315.4,3.2078]
[1737925982934,1.60243314,3315.5,3315.1,0.00267931]
[1737925983131,2.20385171,3315.2,3315.1,0.00267931]
[1737925984230,5.41165171,3315.2,3315.1,0.00267931]
[1737925985629,0.60353,3314.3,3314.1,0.60356]
[1737925985839,0.60353,3314.3,3314.0,0.60358]
[1737925985840,2.20401171,3314.3,3314.0,0.60358]
[1737925986040,2.20401171,3314.3,3313.7,4.2391]
[1737925986240,1.60048171,3314.3,3314.2,1.50874582]
[1737925986633,1.57451,3314.5,3314.3,0.60352]
[1737925986842,0.971,3314.5,3314.4,0.5094]
[1737925987133,1.60048171,3314.6,3314.2,0.90519582]
[1737925987340,0.6035,3314.5,3314.3,0.60353]
[1737925987538,0.6035,3314.5,3314.3,1.12543]
[1737925987740,1.60048171,3314.6,3314.5,0.60349]
[1737925988544,1.60048171,3314.6,3314.3,1.027]
[1737925988545,1.60048171,3314.9,3314.8,0.60344]
[1737925991534,4.1788,3315.1,3315.0,0.6034]
[1737925992042,0.60338,3315.1,3314.9,0.60341]
[1737925992334,1.60048171,3315.0,3314.9,0.60341]
[1737925995541,1.60048171,3315.3,3315.2,0.60337]
[1737925997145,1.60048171,3315.3,3314.9,0.5159]
[1737925997343,0.5091,3315.2,3315.1,0.60338]
[1737925997538,1.11247,3315.2,3315.0,0.60339]
[1737925997742,1.11247,3315.2,3315.1,0.60338]
[1737925998639,0.5091,3315.2,3315.1,0.60338]
[1737926001040,1.60048171,3315.3,3315.2,0.60337]
[1737926001347,2.20383171,3315.3,3315.2,0.60337]
[1737926001545,2.71073171,3315.3,3315.2,0.60337]
[1737926001747,2.10738171,3315.3,3315.2,0.60337]
[1737926004345,1.60048171,3315.3,3315.2,0.60337]
[1737926007555,2.20384171,3315.3,3315.0,3.2078]
[1737926007759,0.60337,3315.2,3315.1,0.60337]
[1737926009448,0.60337,3315.2,3315.0,3.81119]
[1737926009753,0.60342,3314.9,3314.8,1.12473]
[1737926009961,0.60342,3314.9,3314.8,0.5213]
[1737926010255,0.60344,3314.8,3314.7,0.60345]
[1737926010448,1.60048171,3315.0,3314.7,0.60345]
[1737926010655,0.60343,3314.9,3314.7,0.60346]
[1737926010845,0.60343,3314.9,3314.6,3.7134]
[1737926010846,1.60048171,3315.0,3314.6,3.7134]
[1737926011056,1.60048171,3315.0,3314.9,0.60342]
[1737926011357,2.20388171,3315.0,3314.9,0.60342]
[1737926013055,0.60342,3314.9,3314.8,0.60343]
[1737926013360,0.60344,3314.9,3314.7,0.60345]
[1737926013658,0.60344,3314.9,3314.8,0.60344]
[1737926013855,1.60048171,3315.0,3314.6,3.7134]
[1737926014160,0.60342,3314.9,3314.8,0.60343]
[1737926017153,2.20389171,3315.0,3314.6,3.7134]
[1737926017356,2.20389171,3315.0,3314.8,0.60342]
[1737926017555,1.60048171,3315.3,3314.6,3.7134]
[1737926017755,1.60048171,3315.3,3315.2,0.60337]
[1737926017959,2.20383171,3315.3,3315.2,0.60337]
[1737926018961,0.00195143,3315.5,3315.4,0.60333]
[1737926021262,0.00195143,3315.5,3315.4,3.81113]
[1737926040579,1.09466,3316.4,3316.2,0.60318]
[1737926041478,0.60318,3316.3,3316.1,0.6032]
[1737926041776,2.20367171,3316.2,3316.0,0.60516143]
[1737926041977,2.20367171,3316.2,3316.0,0.00195143]
[1737926042176,1.60048171,3316.2,3316.1,0.6032]
[1737926044779,0.4915,3316.4,3316.0,0.00195143]
[1737926045186,1.09465,3316.4,3316.3,0.60317]
[1737926045380,0.4915,3316.4,3316.2,0.60317]
[1737926045682,0.60318,3316.3,3316.1,0.60319]
[1737926045880,0.4915,3316.4,3316.3,0.60317]
[1737926047578,0.00452127,3316.6,3316.0,0.00195143]
[1737926047884,0.00452127,3316.6,3316.5,0.60313]
[1737926050375,0.00452127,3316.6,3316.3,3.2078]
[1737926050575,0.60315,3316.4,3316.3,3.2078]
[1737926053079,2.07588171,3316.5,3316.1,0.4967]
[1737926053275,0.60316,3316.4,3316.2,0.60318]
[1737926053480,2.07588171,3316.5,3316.1,1.09989]
[1737926053481,0.60317,3316.3,3316.1,1.09989]
[1737926054285,0.60317,3316.3,3316.1,0.60319]
[1737926054487,0.60316,3316.4,3316.2,0.60318]
[1737926054677,0.5047,3316.3,3316.2,0.60318]
[1737926055282,2.67902171,3316.5,3316.3,0.60316]
[1737926055697,0.60316,3316.4,3316.2,0.60317]
[1737926055889,0.60317,3316.3,3316.2,0.60317]
[1737926057888,0.60316,3316.4,3316.2,0.60317]
[1737926059187,0.60316,3316.4,3316.3,0.60317]
[1737926060498,0.6032,3316.1,3316.0,0.60516143]
[1737926061393,0.6032,3316.1,3316.0,0.00195143]
[1737926062287,1.6448,3316.1,3316.0,0.00195143]
[1737926063198,6.6448,3316.1,3316.0,0.00195143]
[1737926063391,1.60048171,3315.6,3315.1,4.7086]
[1737926063596,0.60336,3315.3,3315.1,4.31367]
[1737926065996,0.60336,3315.3,3315.1,1.10587]
[1737926066790,1.5611,3315.5,3315.1,0.5025]
[1737926066989,0.60336,3315.3,3315.1,1.10587]
[1737926068892,1.5611,3315.5,3314.9,3.2078]
[1737926069092,0.60338,3315.2,3315.0,0.6034]
[1737926069290,0.5195,3315.5,3314.9,3.2078]
[1737926069498,3.2078,3315.7,3314.9,3.2078]
[1737926069701,3.2078,3315.7,3315.6,0.60329]
[1737926070599,3.81107,3315.7,3315.6,0.60329]
[1737926070794,3.81107,3315.7,3315.4,0.60333]
[1737926070988,3.2078,3315.7,3315.6,0.60329]
[1737926071391,3.81107,3315.7,3315.6,0.60329]
[1737926071998,0.60329,3315.6,3315.5,0.60331]
[1737926072199,3.81108,3315.7,3315.5,0.60331]
[1737926073296,3.81108,3315.7,3315.6,0.60329]
[1737926076705,0.60332,3315.5,3315.4,0.60332]
[1737926080203,0.60332,3315.5,3315.3,0.5082]
[1737926080394,0.60332,3315.5,3315.3,1.11154]
[1737926081601,0.60332,3315.5,3315.4,0.60333]
[1737926082602,2.09458171,3315.6,3315.4,0.60333]
[1737926082803,2.69789171,3315.6,3315.4,0.60333]
[1737926083209,2.69789171,3315.6,3315.3,0.5082]
[1737926083410,2.69789171,3315.6,3315.4,0.60333]
[1737926084607,0.4787,3316.0,3315.9,0.60324]
[1737926084808,0.4787,3316.0,3315.5,3.2078]
[1737926084809,3.2078,3316.1,3316.0,2.15532]
[1737926085311,1.60048171,3316.2,3316.0,1.5521]
[1737926085499,1.60048171,3316.2,3316.1,0.6032]
[1737926089918,3.64031171,3316.5,3316.0,1.5521]
[1737926090110,0.60315,3316.4,3316.0,1.5521]
[1737926090310,0.60315,3316.4,3316.3,0.60317]
[1737926090818,3.03718171,3316.5,3316.0,1.5521]
[1737926091020,0.60315,3316.4,3316.3,0.60315]